fUSD/lending_fUSD_20240519
["ID","MTS","AMOUNT","RATE_DAILY","PERIOD"]
[327494845,1716125466258,-500.0,0.00026593,2]
[327494846,1716125466267,-500.0,0.00026593,2]
[327494847,1716125466277,-500.0,0.00026593,2]
[327494848,1716125466286,-500.0,0.00026593,2]
[327494849,1716125466298,-500.0,0.00026593,2]
[327494850,1716125466308,-500.0,0.00026593,2]
[327494851,1716125466317,-500.0,0.00026593,2]
[327494852,1716125466327,-151.0,0.00026593,7]
[327494853,1716125466336,-294.90044969,0.00026593,2]
[327494854,1716125466346,-533.8608187,0.00026593,2]
[327494855,1716125466355,-583.87,0.00026593,2]
[327494856,1716125466364,-300.696135,0.00026593,7]
[327494857,1716125466374,-500.0,0.00026593,2]
[327494858,1716125466383,-500.0,0.00026593,2]
[327494859,1716125466392,-500.0,0.00026593,2]
[327494860,1716125466401,-500.0,0.00026593,2]
[327494861,1716125466411,-500.0,0.00026593,2]
[327494862,1716125466420,-500.0,0.00026593,2]
[327494863,1716125466430,-500.0,0.00026593,2]
[327494864,1716125466440,-500.0,0.00026593,2]
[327494865,1716125466450,-500.0,0.00026593,2]
[327494866,1716125466459,-500.0,0.00026593,2]
[327494867,1716125466469,-500.0,0.00026593,2]
[327494868,1716125466479,-500.0,0.00026593,2]
[327494869,1716125466488,-500.0,0.00026593,2]
[327494870,1716125466498,-500.0,0.00026593,2]
[327494871,1716125466507,-500.0,0.00026593,2]
[327494872,1716125466517,-500.0,0.00026593,2]
[327494873,1716125466527,-151.0,0.00026593,7]
[327494874,1716125466536,-151.0,0.00026593,7]
[327494875,1716125466549,-151.0,0.00026593,7]
[327494876,1716125466558,-222.613491,0.00026593,7]
[327494877,1716125466567,-222.613491,0.00026593,7]
[327494878,1716125466576,-151.0,0.00026593,7]
[327494879,1716125466586,-151.0,0.00026593,7]
[327494880,1716125466595,-151.0,0.00026593,7]
[327494881,1716125466604,-220.814511,0.00026593,7]
[327494882,1716125466614,-220.814511,0.00026593,7]
[327494883,1716125466624,-150.0,0.00026593,2]
[327494884,1716125466633,-279.981047,0.00026593,7]
[327494885,1716125466643,-250.011056,0.00026593,7]
[327494886,1716125466652,-250.011056,0.00026593,7]
[327494887,1716125466662,-151.0,0.00026594,7]
[327494888,1716125466671,-162.74545,0.00026594,7]
[327494889,1716125466682,-272.34863275,0.00026594,2]
[327494890,1716125466691,-147496.8085,0.00026595,2]
[327494891,1716125466701,-153.120329,0.00026595,7]
[327494892,1716125466710,-151.0,0.00026595,7]
[327494893,1716125466720,-151.0,0.00026595,7]
[327494894,1716125466729,-151.0,0.00026595,7]
[327494895,1716125466738,-222.613491,0.00026595,7]
[327494896,1716125466748,-222.613491,0.00026595,7]
[327494897,1716125466758,-151.0,0.00026595,7]
[327494898,1716125466768,-151.0,0.00026595,7]
[327494899,1716125466777,-151.0,0.00026595,7]
[327494900,1716125466787,-220.814511,0.00026595,7]
[327494901,1716125466800,-220.814511,0.00026595,7]
[327494902,1716125466810,-150.0,0.00026596,2]
[327494903,1716125466820,-150.0,0.00026617,2]
[327494904,1716125466830,-150.0,0.00026618,2]
[327494905,1716125466840,-150.0,0.00026622,2]
[327494906,1716125466850,-150.0,0.00026631,2]
[327494907,1716125466860,-150.0,0.00026632,2]
[327494908,1716125466869,-150.0,0.00026633,2]
[327494909,1716125466879,-150.0,0.00026642,2]
[327494910,1716125466889,-657.56,0.00026642,2]
[327494911,1716125466898,-506.18,0.00026642,2]
[327494912,1716125466908,-500.0,0.00026642,2]
[327494913,1716125466917,-500.0,0.00026642,2]
[327494914,1716125466926,-500.0,0.00026642,2]
[327494915,1716125466936,-879.12,0.00026642,2]
[327494916,1716125466946,-671.24,0.00026642,2]
[327494917,1716125466956,-500.0,0.00026642,2]
[327494918,1716125466966,-609.43,0.00026642,2]
[327494919,1716125466975,-500.0,0.00026642,2]
[327494920,1716125466985,-2500.45,0.00026642,2]
[327494921,1716125466994,-843.99,0.00026642,2]
[327494922,1716125467004,-500.0,0.00026642,2]
[327494923,1716125467014,-637.01,0.00026642,2]
[327494924,1716125467024,-500.0,0.00026642,2]
[327494925,1716125467034,-568.61,0.00026642,2]
[327494926,1716125467045,-817.19,0.00026642,2]
[327494927,1716125467055,-500.0,0.00026642,2]
[327494928,1716125467064,-854.39,0.00026642,2]
[327494929,1716125467076,-666.0,0.00026642,2]
[327494930,1716125467086,-637.12,0.00026642,2]
[327494931,1716125467095,-857.61,0.00026642,2]
[327494932,1716125467104,-500.0,0.00026642,2]
[327494933,1716125467115,-500.0,0.00026642,2]
[327494934,1716125467124,-518.83,0.00026642,2]
[327494935,1716125467134,-500.0,0.00026642,2]
[327494936,1716125467143,-726.23,0.00026642,2]
[327494937,1716125467153,-762.51,0.00026642,2]
[327494938,1716125467163,-500.0,0.00026642,2]
[327494939,1716125467175,-1281.27,0.00026642,2]
[327494940,1716125467185,-1187.11,0.00026642,2]
[327494941,1716125467195,-820.48,0.00026642,2]
[327494942,1716125467339,-500.0,0.00026642,2]
[327494943,1716125467350,-1052.6,0.00026642,2]
[327494944,1716125467361,-763.43,0.00026642,2]
[327494945,1716125467370,-1150.72,0.00026642,2]
[327494946,1716125467380,-500.0,0.00026642,2]
[327494947,1716125467389,-3667.38,0.00026642,2]
[327494948,1716125467398,-1211.58,0.00026642,2]
[327494949,1716125467408,-986.86,0.00026642,2]
[327494950,1716125467417,-500.0,0.00026642,2]
[327494951,1716125467427,-339.4,0.00026642,2]
[327494952,1716125467436,-740.89,0.00026642,2]
[327494953,1716125467446,-533.27,0.00026642,2]
[327494954,1716125467456,-500.0,0.00026642,2]
[327494955,1716125467465,-500.0,0.00026642,2]
[327494956,1716125467475,-975.8,0.00026642,2]
[327494957,1716125467485,-1384.87,0.00026642,2]
[327494958,1716125467494,-500.0,0.00026642,2]
[327494959,1716125467503,-1006.42,0.00026642,2]
[327494960,1716125467513,-500.0,0.00026642,2]
[327494961,1716125467523,-2304.66,0.00026642,2]
[327494962,1716125467533,-2722.15,0.00026642,2]
[327494963,1716125467544,-3116.58,0.00026642,2]
[327494964,1716125467554,-500.0,0.00026642,2]
[327494965,1716125467564,-942.59,0.00026642,2]
[327494966,1716125467573,-550.82673991,0.00026642,2]
[327494967,1716125467583,-500.0,0.00026642,2]
[327494968,1716125467595,-500.0,0.00026642,2]
[327494969,1716125467605,-15816.75,0.00026642,2]
[327494970,1716125467615,-500.0,0.00026642,2]
[327494971,1716125467624,-849.34,0.00026642,2]
[327494972,1716125467634,-500.0,0.00026642,2]
[327494973,1716125467643,-500.0,0.00026642,2]
[327494974,1716125467653,-500.0,0.00026642,2]
[327494975,1716125467664,-500.0,0.00026642,2]
[327494976,1716125467679,-500.0,0.00026642,2]
[327494977,1716125467688,-1608.23,0.00026642,2]
[327494978,1716125467698,-500.0,0.00026642,2]
[327494979,1716125467707,-9478.72,0.00026642,2]
[327494980,1716125467717,-799.64711703,0.00026643,2]
[327494981,1716125467727,-177.85,0.00026643,2]
[327494982,1716125467736,-500.0,0.00026643,2]
[327494983,1716125467746,-500.0,0.00026643,2]
[327494984,1716125467756,-500.0,0.00026643,7]
[327494985,1716125467765,-523.96114594,0.00026643,2]
[327494986,1716125467775,-500.0,0.00026643,2]
[327494987,1716125467785,-500.0,0.00026643,2]
[327494988,1716125467798,-500.0,0.00026643,2]
[327494989,1716125467808,-500.0,0.00026643,2]
[327494990,1716125467817,-500.0,0.00026643,2]
[327494991,1716125467826,-606.15,0.00026643,2]
[327494992,1716125467836,-500.0,0.00026643,2]
[327494993,1716125467845,-350.40233506,0.00026643,2]
[327494994,1716125467854,-500.0,0.00026643,2]
[327494995,1716125467863,-585.39095552,0.00026643,2]
[327494996,1716125467873,-500.0,0.00026643,2]
[327494997,1716125467883,-500.0,0.00026643,2]
[327494998,1716125467892,-500.0,0.00026643,2]
[327494999,1716125467901,-500.0,0.00026643,2]
[327495000,1716125467910,-514.48896988,0.00026643,2]
[327495001,1716125467920,-500.0,0.00026643,2]
[327495002,1716125467930,-500.0,0.00026643,2]
[327495003,1716125467939,-555.25000021,0.00026643,2]
[327495004,1716125467948,-500.0,0.00026643,2]
[327495005,1716125467958,-500.0,0.00026643,2]
[327495006,1716125467967,-500.0,0.00026643,2]
[327495007,1716125467977,-815.2,0.00026643,2]
[327495008,1716125467987,-615.48,0.00026643,2]
[327495009,1716125467996,-500.0,0.00026643,2]
[327495010,1716125468006,-500.0,0.00026643,2]
[327495011,1716125468015,-500.0,0.00026643,2]
[327495012,1716125468025,-500.0,0.00026643,2]
[327495013,1716125468035,-331.08,0.00026643,2]
[327495014,1716125468048,-500.0,0.00026643,2]
[327495015,1716125468057,-725.95,0.00026643,2]
[327495016,1716125468066,-500.0,0.00026643,2]
[327495017,1716125468075,-500.0,0.00026643,2]
[327495018,1716125468085,-500.0,0.00026643,2]
[327495019,1716125468093,-500.0,0.00026643,2]
[327495020,1716125468103,-500.0,0.00026643,2]
[327495021,1716125468112,-150.0,0.00026643,2]
[327495022,1716125468122,-500.0,0.00026643,2]
[327495023,1716125468132,-500.0,0.00026643,2]
[327495024,1716125468142,-988.92,0.00026643,2]
[327495025,1716125468151,-500.0,0.00026643,2]
[327495026,1716125468162,-622.87,0.00026643,2]
[327495027,1716125468175,-500.0,0.00026643,2]
[327495028,1716125468184,-605.03015127,0.00026643,2]
[327495029,1716125468194,-780.74,0.00026643,2]
[327495030,1716125468205,-500.0,0.00026643,2]
[327495031,1716125468215,-500.0,0.00026643,2]
[327495032,1716125468224,-500.0,0.00026643,2]
[327495033,1716125468234,-500.0,0.00026643,2]
[327495034,1716125468247,-500.0,0.00026643,2]
[327495035,1716125468257,-500.0,0.00026643,2]
[327495036,1716125468267,-355.44882989,0.00026643,2]
[327495037,1716125468277,-500.0,0.00026643,2]
[327495038,1716125468286,-500.0,0.00026643,2]
[327495039,1716125468298,-500.0,0.00026643,2]
[327495040,1716125468307,-619.66,0.00026643,2]
[327495041,1716125468317,-500.0,0.00026643,2]
[327495042,1716125468327,-500.0,0.00026643,2]
[327495043,1716125468336,-500.0,0.00026643,2]
[327495044,1716125468346,-846.91,0.00026643,2]
[327495045,1716125468356,-373.72927668,0.00026643,2]
[327495046,1716125468365,-500.0,0.00026643,2]
[327495047,1716125468374,-982.33,0.00026643,2]
[327495048,1716125468384,-500.0,0.00026643,2]
[327495049,1716125468394,-1644.32,0.00026643,2]
[327495050,1716125468404,-1782.9,0.00026643,2]
[327495051,1716125468413,-500.0,0.00026643,2]
[327495052,1716125468423,-700.7,0.00026643,2]
[327495053,1716125468433,-1923.11,0.00026643,2]
[327495054,1716125468442,-1095.98,0.00026643,2]
[327495055,1716125468452,-1383.57,0.00026643,2]
[327495056,1716125468461,-1151.71,0.00026643,2]
[327495057,1716125468471,-500.0,0.00026643,2]
[327495058,1716125468480,-1219.6,0.00026643,2]
[327495059,1716125468491,-848.32,0.00026643,2]
[327495060,1716125468500,-500.0,0.00026643,2]
[327495061,1716125468509,-513.28,0.00026643,2]
[327495062,1716125468519,-777.11,0.00026643,2]
[327495063,1716125468529,-500.0,0.00026643,2]
[327495064,1716125468539,-1055.0,0.00026643,2]
[327495065,1716125468550,-512.59,0.00026643,2]
[327495066,1716125468559,-500.0,0.00026643,2]
[327495067,1716125468568,-541.07,0.00026643,2]
[327495068,1716125468578,-828.51,0.00026643,2]
[327495069,1716125468587,-500.0,0.00026643,2]
[327495070,1716125468597,-989.78,0.00026643,2]
[327495071,1716125468607,-500.0,0.00026643,2]
[327495072,1716125468618,-500.0,0.00026643,2]
[327495073,1716125468628,-500.0,0.00026643,2]
[327495074,1716125468638,-1162.85,0.00026643,2]
[327495075,1716125468647,-540.7,0.00026643,2]
[327495076,1716125468657,-500.0,0.00026643,2]
[327495077,1716125468666,-500.0,0.00026643,2]
[327495078,1716125468676,-3682.75,0.00026643,2]
[327495079,1716125468685,-500.0,0.00026643,2]
[327495080,1716125468695,-1892.05,0.00026643,2]
[327495081,1716125468704,-500.0,0.00026643,2]
[327495082,1716125468714,-1015.08,0.00026643,2]
[327495083,1716125468723,-878.61,0.00026643,2]
[327495084,1716125468733,-871.12,0.00026643,2]
[327495085,1716125468743,-500.0,0.00026643,2]
[327495086,1716125468753,-500.0,0.00026643,2]
[327495087,1716125468762,-1467.74,0.00026643,2]
[327495088,1716125468772,-500.0,0.00026643,2]
[327495089,1716125468781,-1893.57,0.00026643,2]
[327495090,1716125468791,-533.14,0.00026643,2]
[327495091,1716125468803,-401.56769118,0.00026643,2]
[327495092,1716125468813,-500.0,0.00026643,2]
[327495093,1716125468823,-500.0,0.00026643,2]
[327495094,1716125468833,-656.36,0.00026643,2]
[327495095,1716125468843,-615.22,0.00026643,2]
[327495096,1716125468854,-810.74,0.00026643,2]
[327495097,1716125468864,-997.13,0.00026643,2]
[327495098,1716125468874,-837.85,0.00026643,2]
[327495099,1716125468884,-674.79,0.00026643,2]
[327495100,1716125468894,-2150.8,0.00026643,2]
[327495101,1716125468904,-500.0,0.00026643,2]
[327495102,1716125468915,-827.03,0.00026643,2]
[327495103,1716125468925,-2747.6,0.00026643,2]
[327495104,1716125468935,-1069.79,0.00026643,2]
[327495105,1716125468945,-4457.98,0.00026643,2]
[327495106,1716125468955,-925.95,0.00026643,2]
[327495107,1716125468966,-500.0,0.00026643,2]
[327495108,1716125468975,-896.89,0.00026643,2]
[327495109,1716125468985,-642.48835875,0.00026643,2]
[327495110,1716125468995,-997.04,0.00026643,2]
[327495111,1716125469005,-6546.3,0.00026643,2]
[327495112,1716125469015,-500.0,0.00026643,2]
[327495113,1716125469024,-744.57,0.00026643,2]
[327495114,1716125469035,-1036.81,0.00026643,2]
[327495115,1716125469047,-500.0,0.00026643,2]
[327495116,1716125469057,-500.0,0.00026643,2]
[327495117,1716125469067,-500.0,0.00026643,2]
[327495118,1716125469078,-500.0,0.00026643,2]
[327495119,1716125469088,-2745.43,0.00026643,2]
[327495120,1716125469098,-500.0,0.00026643,2]
[327495121,1716125469109,-1015.07,0.00026643,2]
[327495122,1716125469119,-521.3,0.00026643,2]
[327495123,1716125469129,-150.0,0.00026644,2]
[327495124,1716125469139,-150.0,0.00026644,2]
[327495125,1716125469150,-2000.0,0.00026645,2]
[327495126,1716125469163,-200.0,0.00026645,2]
[327495127,1716125469173,-200.0,0.00026645,2]
[327495128,1716125469183,-220.814511,0.00026645,7]
[327495129,1716125469193,-220.814511,0.00026645,7]
[327495130,1716125469204,-1695.26143,0.00026645,2]
[327495131,1716125469215,-150.0,0.00026648,2]
[327495132,1716125469225,-930.22,0.00026655,2]
[327495133,1716125469235,-150.0,0.00026657,2]
[327495134,1716125469246,-150.0,0.00026662,2]
[327495135,1716125469257,-150.0,0.00026666,2]
[327495136,1716125469268,-150.0,0.00026669,2]
[327495137,1716125469278,-150.0,0.00026674,2]
[327495138,1716125469289,-180.10524634,0.0002668,2]
[327495139,1716125469303,-150.0,0.00026686,2]
[327495140,1716125469313,-4426.48350078,0.00026688,2]
[327495141,1716125469323,-1482.20894161,0.00026688,10]
[327495142,1716125469333,-155.0,0.0002669,19]
[327495143,1716125469343,-150.0,0.0002669,2]
[327495144,1716125469353,-3896.494807,0.00026691,2]
[327495145,1716125469364,-6295.620834,0.00026691,2]
[327495146,1716125469374,-223.3476306,0.00026691,2]
[327495147,1716125469384,-151.0,0.00026691,7]
[327495148,1716125469394,-151.0,0.00026691,7]
[327495149,1716125469404,-150.0,0.00026691,2]
[327495150,1716125469414,-5800.0,0.00026692,2]
[327495151,1716125469425,-5800.0,0.00026692,2]
[327495152,1716125469435,-272.360332,0.00026692,7]
[327495153,1716125469444,-151.0,0.00026692,7]
[327495154,1716125469454,-151.0,0.00026692,7]
[327495155,1716125469463,-222.613491,0.00026692,7]
[327495156,1716125469473,-222.613491,0.00026692,7]
[327495157,1716125469483,-411.11408338,0.00026693,2]
[327495158,1716125469493,-12649.23290629,0.00026693,2]
[327495159,1716125469503,-1000.0,0.00026693,2]
[327495160,1716125469513,-155.0,0.00026693,2]
[327495161,1716125469522,-4739.87745178,0.00026693,3]
[327495162,1716125469532,-198.04961042,0.00026694,10]
[327495163,1716125469542,-409.46596364,0.00026695,2]
[327495164,1716125469556,-208.03626817,0.00026695,2]
[327495165,1716125469565,-5869.22836401,0.00026695,2]
[327495166,1716125469574,-50607.0921698,0.00026695,2]
[327495167,1716125469584,-4811.0197423,0.00026695,2]
[327495168,1716125469593,-1089.8532276,0.00026695,2]
[327495169,1716125469602,-548.73487624,0.00026696,2]
[327495170,1716125469612,-238.73694999,0.00026698,2]
[327495171,1716125469621,-250000.0,0.000267,2]
[327495172,1716125469631,-5800.0,0.000267,2]
[327495173,1716125469642,-160.0,0.000267,2]
[327495174,1716125469652,-5800.0,0.000267,2]
[327495175,1716125469662,-151.0,0.000267,7]
[327495176,1716125469680,-151.0,0.000267,7]
[327495177,1716125469693,-151.0,0.000267,7]
[327495178,1716125469704,-151.0,0.000267,7]
[327495179,1716125469714,-151.0,0.000267,7]
[327495180,1716125469725,-186.780585,0.000267,7]
[327495181,1716125469735,-222.613491,0.000267,7]
[327495182,1716125469745,-222.613491,0.000267,7]
[327495183,1716125469756,-222.613491,0.000267,7]
[327495184,1716125469767,-222.613491,0.000267,7]
[327495185,1716125469777,-222.613491,0.000267,7]
[327495186,1716125469787,-222.613491,0.000267,7]
[327495187,1716125469800,-151.0,0.000267,7]
[327495188,1716125469811,-151.0,0.000267,7]
[327495189,1716125469821,-151.0,0.000267,7]
[327495190,1716125469832,-151.0,0.000267,7]
[327495191,1716125469842,-151.0,0.000267,7]
[327495192,1716125469853,-5800.0,0.000267,2]
[327495193,1716125469863,-150.0,0.000267,5]
[327495194,1716125469874,-571804.0,0.000267,2]
[327495195,1716125469884,-39091.0,0.000267,2]
[327495196,1716125469894,-119031.0,0.000267,2]
[327495197,1716125469904,-19857.0,0.000267,2]
[327495198,1716125469914,-1805.728918,0.00026714,2]
[327495199,1716125469925,-186.378006,0.00026714,2]
[327495200,1716125469935,-1513.48422,0.00026714,2]
[327495201,1716125469945,-428.112904,0.00026714,2]
[327495202,1716125469957,-233.77768,0.00026714,2]
[327495203,1716125469967,-756.74211,0.00026714,2]
[327495204,1716125469978,-214.056452,0.00026714,2]
[327495205,1716125469989,-194.814735,0.00026714,2]
[327495206,1716125469999,-756.74211,0.00026714,2]
[327495207,1716125470009,-214.056452,0.00026714,2]
[327495208,1716125470019,-194.814734,0.00026714,2]
[327495209,1716125470029,-281.111041,0.00026714,2]
[327495210,1716125470039,-185.849051,0.00026714,2]
[327495211,1716125470050,-756.742111,0.00026714,2]
[327495212,1716125470060,-247.172009,0.00026714,2]
[327495213,1716125470070,-194.814734,0.00026714,2]
[327495214,1716125470083,-632.46258,0.00026714,2]
[327495215,1716125470096,-17815.44131664,0.00026715,2]
[327495216,1716125470107,-384.44807828,0.0002674,2]
[327495217,1716125470117,-44647.9392335,0.00026762,2]
[327495218,1716125470126,-38688.7862972,0.00026762,2]
[327495219,1716125470136,-4244.5062124,0.00026762,2]
[327495220,1716125470146,-3677.9926825,0.00026762,2]
[327495221,1716125470155,-3434.7286384,0.00026762,2]
[327495222,1716125470165,-2972.9624699,0.00026762,2]
[327495223,1716125470396,-5549.5388154,0.00026762,2]
[327495224,1716125470406,-4803.4567968,0.00026762,2]
[327495225,1716125470416,-223.3476306,0.00026762,2]
[327495226,1716125470426,-223.3476306,0.00026762,2]
[327495227,1716125470435,-960.6968001,0.00026762,2]
[327495228,1716125470445,-831.5403726,0.00026762,2]
[327495229,1716125470455,-151.0,0.00026762,7]
[327495230,1716125470464,-283.247166,0.00026762,7]
[327495231,1716125470474,-222.613491,0.00026762,7]
[327495232,1716125470484,-222.613489,0.00026762,7]
[327495233,1716125470494,-1013.37,0.0002677,2]
[327495234,1716125470504,-628.55191294,0.00026778,2]
[327495235,1716125470513,-7721549.34640231,0.0002678,2]
[327495236,1716125470523,-180.28603728,0.0002678,2]
[327495237,1716125470533,-171.55614126,0.0002678,2]
[327495238,1716125470543,-949.0,0.0002679,2]
[327495239,1716125470554,-949.0,0.0002679,2]
[327495240,1716125470563,-949.0,0.0002679,2]
[327495241,1716125470573,-949.0,0.0002679,2]
[327495242,1716125470583,-949.0,0.0002679,2]
[327495243,1716125470593,-949.0,0.0002679,2]
[327495244,1716125470602,-949.0,0.0002679,2]
[327495245,1716125470612,-949.0,0.0002679,2]
[327495246,1716125470621,-949.0,0.0002679,2]
[327495247,1716125470630,-949.0,0.0002679,2]
[327495248,1716125470640,-515594.72630435,0.000268,2]
[327495249,1716125470650,-24008.46879647,0.000268,2]
[327495250,1716125470660,-17815.44131664,0.00026833,2]
[327495251,1716125470669,-1226.0,0.00026841,2]
[327495252,1716125470679,-439.0,0.00026841,2]
[327495253,1716125470688,-612.419,0.00026841,2]
[327495254,1716125470698,-809.0,0.00026841,2]
[327495255,1716125470707,-165.197,0.00026841,2]
[327495256,1716125470717,-566.909,0.00026841,2]
[327495257,1716125470726,-215.159,0.00026841,2]
[327495258,1716125470736,-1648.0,0.00026841,2]
[327495259,1716125470746,-155.26,0.00026841,2]
[327495260,1716125470756,-1137.0,0.00026841,2]
[327495261,1716125470765,-215.0,0.00026841,2]
[327495262,1716125470775,-2865.224,0.00026841,2]
[327495263,1716125470785,-289.0,0.00026841,2]
[327495264,1716125470797,-5751.0,0.00026841,2]
[327495265,1716125470806,-2243.026,0.00026841,2]
[327495266,1716125470817,-1464.0,0.00026841,2]
[327495267,1716125470827,-500.0,0.00026864,2]
[327495268,1716125470837,-500.0,0.00026864,2]
[327495269,1716125470847,-500.0,0.00026864,2]
[327495270,1716125470858,-500.0,0.00026864,2]
[327495271,1716125470869,-500.0,0.00026864,2]
[327495272,1716125470879,-580.28,0.00026864,2]
[327495273,1716125470889,-500.0,0.00026864,2]
[327495274,1716125470899,-500.0,0.00026864,2]
[327495275,1716125470909,-550.6315574,0.00026864,2]
[327495276,1716125470919,-551.50203657,0.00026864,2]
[327495277,1716125470928,-500.0,0.00026864,2]
[327495278,1716125470938,-573.3,0.00026864,2]
[327495279,1716125470948,-500.0,0.00026864,2]
[327495280,1716125470960,-500.0,0.00026864,2]
[327495281,1716125470970,-500.0,0.00026864,2]
[327495282,1716125470980,-500.0,0.00026864,2]
[327495283,1716125470990,-500.0,0.00026864,2]
[327495284,1716125471000,-645.83,0.00026864,2]
[327495285,1716125471011,-500.0,0.00026864,2]
[327495286,1716125471021,-500.0,0.00026864,2]
[327495287,1716125471033,-537.454286,0.00026864,2]
[327495288,1716125471043,-500.0,0.00026864,2]
[327495289,1716125471054,-500.0,0.00026864,2]
[327495290,1716125471063,-500.0,0.00026864,2]
[327495291,1716125471072,-500.0,0.00026864,2]
[327495292,1716125471081,-538.84618063,0.00026864,2]
[327495293,1716125471091,-461.68943083,0.00026864,2]
[327495294,1716125471100,-500.0,0.00026864,2]
[327495295,1716125471110,-500.0,0.00026864,2]
[327495296,1716125471120,-500.0,0.00026864,2]
[327495297,1716125471130,-500.0,0.00026864,2]
[327495298,1716125471139,-500.0,0.00026864,2]
[327495299,1716125471149,-500.0,0.00026864,2]
[327495300,1716125471162,-500.0,0.00026864,2]
[327495301,1716125471171,-500.0,0.00026864,2]
[327495302,1716125471180,-500.0,0.00026864,2]
[327495303,1716125471190,-500.0,0.00026864,2]
[327495304,1716125471199,-500.0,0.00026864,2]
[327495305,1716125471209,-500.0,0.00026864,2]
[327495306,1716125471219,-594.82728951,0.00026864,2]
[327495307,1716125471228,-500.0,0.00026864,2]
[327495308,1716125471240,-674.97,0.00026864,2]
[327495309,1716125471250,-500.0,0.00026864,2]
[327495310,1716125471259,-838.37,0.00026864,2]
[327495311,1716125471268,-4449.99,0.00026864,2]
[327495312,1716125471277,-522.1,0.00026864,2]
[327495313,1716125471287,-500.0,0.00026865,2]
[327495314,1716125471298,-500.0,0.00026865,2]
[327495315,1716125471307,-2017.93,0.00026865,2]
[327495316,1716125471315,-500.0,0.00026867,2]
[327495317,1716125471325,-515.19741678,0.00026867,2]
[327495318,1716125471335,-592.18585114,0.00026867,2]
[327495319,1716125471347,-500.0,0.00026867,2]
[327495320,1716125471357,-500.0,0.00026867,2]
[327495321,1716125471371,-500.0,0.00026867,2]
[327495322,1716125471381,-542.47119662,0.00026867,2]
[327495323,1716125471391,-500.0,0.00026867,2]
[327495324,1716125471400,-500.0,0.00026867,2]
[327495325,1716125471410,-547.97707515,0.00026867,2]
[327495326,1716125471419,-429.66101887,0.00026867,2]
[327495327,1716125471429,-500.0,0.00026867,2]
[327495328,1716125471438,-500.0,0.00026867,2]
[327495329,1716125471447,-500.0,0.00026867,2]
[327495330,1716125471457,-500.0,0.00026867,2]
[327495331,1716125471466,-500.0,0.00026867,2]
[327495332,1716125471475,-500.0,0.00026867,2]
[327495333,1716125471484,-558.85797246,0.00026867,2]
[327495334,1716125471494,-500.0,0.00026867,2]
[327495335,1716125471503,-500.0,0.00026867,2]
[327495336,1716125471512,-500.0,0.00026867,2]
[327495337,1716125471522,-500.0,0.00026867,2]
[327495338,1716125471531,-500.0,0.00026867,2]
[327495339,1716125471540,-500.0,0.00026867,2]
[327495340,1716125471550,-500.0,0.00026867,2]
[327495341,1716125471560,-500.0,0.00026867,2]
[327495342,1716125471570,-500.0,0.00026867,2]
[327495343,1716125471579,-500.0,0.00026867,2]
[327495344,1716125471588,-628.37090927,0.00026867,2]